bitfinex/quotes_SOLUSD_20240813
["timestamp","ask_amount","ask_price","bid_price","bid_amount"]
[1723593118623,12.5,146.83,146.74,28.7223]
[1723593118828,12.5,146.83,146.79,6.8123]
[1723593119149,12.5,146.81,146.78,6.8128]
[1723593120023,20.0,146.82,146.78,6.8128]
[1723593123449,6.6149,146.84,146.81,6.811]
[1723593123661,6.6149,146.84,146.75,1.48798241]
[1723593123662,16.0201,146.86,146.83,6.8103]
[1723593124152,16.0201,146.86,146.81,6.8114]
[1723593124358,16.0201,146.86,146.82,6.8109]
[1723593124857,16.0201,146.86,146.75,0.25098]
[1723593125029,20.0,146.85,146.76,0.25098]
[1723593125224,20.0,146.85,146.77,0.25098]
[1723593125461,20.0,146.85,146.78,0.12549]
[1723593128469,16.0201,146.86,146.78,0.12549]
[1723593128655,55.33578429,146.9,146.79,0.12549]
[1723593128829,20.0,146.89,146.79,65.37647]
[1723593129029,6.8088,146.87,146.82,6.811]
[1723593129680,31.23,146.88,146.83,6.8104]
[1723593129828,20.0,146.87,146.83,6.8104]
[1723593131456,20.0,146.87,146.78,0.25098]
[1723593131654,20.0,146.89,146.8,15.5432]
[1723593131833,51.23,146.89,146.8,15.5432]
[1723593132032,51.23,146.89,146.81,0.12549]
[1723593132268,58.0382,146.89,146.8,15.5432]
[1723593132435,6.8084,146.88,146.83,6.8105]
[1723593132844,20.0,146.87,146.83,6.8105]
[1723593133063,58.039,146.87,146.82,6.8106]
[1723593133236,31.23,146.87,146.83,6.8105]
[1723593133735,20.0,146.89,146.78,31.23]
[1723593133940,20.0,146.89,146.79,20.0]
[1723593134345,20.0,146.89,146.8,45.37647]
[1723593134545,20.0,146.89,146.85,6.8096]
[1723593135049,0.85950493,146.88,146.84,6.81]
[1723593135236,20.0,146.89,146.84,6.81]
[1723593135432,26.8079,146.89,146.84,6.81]
[1723593136344,31.23,146.88,146.82,6.8107]
[1723593136665,31.23,146.88,146.81,6.8114]
[1723593136666,38.0392,146.86,146.81,6.8114]
[1723593137465,38.0392,146.86,146.76,21.8684]
[1723593137466,31.23,146.86,146.82,6.8109]
[1723593138341,31.23,146.88,146.83,1.36211645]
[1723593138669,20.0,146.87,146.78,0.12549]
[1723593138967,20.0,146.87,146.84,6.81]
[1723593140764,20.0,146.87,146.83,6.8104]
[1723593141558,31.23,146.86,146.77,20.0]
[1723593141766,31.23,146.86,146.76,21.8684]
[1723593141767,31.23,146.83,146.76,15.439]
[1723593142071,12.49,146.8,146.73,1.36255068]
[1723593142261,12.49,146.8,146.74,1.36262981]
[1723593142570,12.49,146.8,146.76,6.8137]
[1723593142939,12.49,146.78,146.74,6.8144]
[1723593143158,12.49,146.78,146.73,6.8152]
[1723593143366,12.49,146.76,146.74,6.8147]
[1723593143740,12.49,146.76,146.72,6.8156]
[1723593143943,12.49,146.76,146.73,6.8152]
[1723593144162,12.49,146.76,146.74,6.8146]
[1723593144368,6.4488,146.82,146.76,6.8137]
[1723593144573,12.49,146.8,146.77,6.8133]
[1723593144881,20.0,146.79,146.77,6.8133]
[1723593145089,18.9388,146.82,146.79,6.8124]
[1723593145379,7.77488929,146.84,146.81,6.8111]
[1723593145380,12.49,146.84,146.81,6.8111]
[1723593146073,13.1506,146.86,146.81,6.8111]
[1723593146458,61.26863463,146.87,146.76,0.12549]
[1723593146658,54.1581,146.87,146.76,65.50196]
[1723593147679,20.0,146.86,146.76,65.50196]
[1723593147881,54.1581,146.87,146.76,65.50196]
[1723593147882,54.1581,146.87,146.82,6.8109]
[1723593149199,20.0,146.86,146.82,6.8109]
[1723593150249,26.8092,146.86,146.82,6.8109]
[1723593151184,26.8092,146.86,146.76,20.0]
[1723593151185,31.21,146.85,146.76,20.0]
[1723593151494,6.8101,146.84,146.79,6.8123]
[1723593153285,6.8101,146.84,146.8,6.8119]
[1723593153600,31.21,146.85,146.81,6.8114]
[1723593153762,31.21,146.85,146.76,20.0]
[1723593153763,31.21,146.85,146.8,6.8118]
[1723593153957,31.21,146.85,146.76,20.0]
[1723593154159,20.0,146.86,146.82,6.811]
[1723593155491,20.0,146.86,146.8,6.8118]
[1723593155492,38.0199,146.85,146.8,6.8118]
[1723593155659,38.0199,146.85,146.76,20.0]
[1723593155660,7.66960493,146.84,146.76,20.0]
[1723593156067,6.8101,146.84,146.79,6.812]
[1723593156490,0.85950493,146.83,146.79,6.812]
[1723593156686,0.85950493,146.83,146.8,6.8118]
[1723593156876,38.0197,146.85,146.8,6.8118]
[1723593157290,31.21,146.83,146.76,20.0]
[1723593157493,31.21,146.83,146.79,6.8124]
[1723593159368,31.21,146.83,146.8,6.8119]
[1723593159669,31.21,146.83,146.81,6.8114]
[1723593160689,31.21,146.83,146.76,20.0]
[1723593161311,31.21,146.83,146.8,6.8119]
[1723593162414,0.85950493,146.82,146.79,6.8123]
[1723593162781,0.85950493,146.82,146.71,16.3278]
[1723593162986,31.58647,146.81,146.72,20.0]
[1723593163422,31.21,146.79,146.72,20.0]
[1723593163618,31.21,146.79,146.71,16.3278]
[1723593163787,31.21,146.77,146.71,16.3278]
[1723593164007,31.21,146.77,146.74,6.8146]
[1723593166396,31.21,146.79,146.77,6.8132]
[1723593166603,31.21,146.81,146.8,6.8119]
[1723593166793,20.0,146.81,146.8,6.8119]
[1723593167318,20.0,146.81,146.79,6.8123]
[1723593167525,20.0,146.82,146.78,6.8128]
[1723593168093,31.21,146.81,146.78,6.8128]
[1723593169412,31.21,146.81,146.71,16.3278]
[1723593169623,31.21,146.81,146.73,0.12549]
[1723593169803,31.21,146.81,146.79,6.8123]
[1723593169998,31.21,146.81,146.78,6.8128]
[1723593170395,31.21,146.81,146.72,20.0]
[1723593170713,31.21,146.79,146.72,20.0]
[1723593171823,31.21,146.79,146.76,6.8138]
[1723593173330,31.21,146.79,146.77,6.8132]
[1723593173625,31.21,146.81,146.78,6.8127]
[1723593174607,51.21,146.82,146.78,6.8127]
[1723593175333,51.21,146.82,146.79,6.8121]
[1723593177323,51.21,146.82,146.73,0.12549]
[1723593177618,58.0211,146.82,146.77,6.8129]
[1723593178415,58.0211,146.82,146.78,6.8127]
[1723593180429,6.8116,146.81,146.73,45.50196]
[1723593181327,6.8116,146.81,146.76,6.8135]
[1723593181728,7.67110493,146.81,146.76,6.8135]
[1723593181942,6.8116,146.81,146.77,6.8133]
[1723593182640,55.60408929,146.85,146.74,0.12549]
[1723593182843,20.0,146.84,146.8,6.8118]
[1723593183820,26.8101,146.84,146.8,6.8118]
[1723593184547,26.8101,146.84,146.79,6.8123]
[1723593184721,26.8101,146.84,146.74,0.37647]
[1723593184722,6.8115,146.81,146.74,0.25098]
[1723593184933,38.0215,146.81,146.74,20.0]
[1723593185259,31.21,146.81,146.77,6.8133]
[1723593185762,38.0217,146.81,146.76,6.8137]
[1723593186061,38.0217,146.81,146.77,6.8133]
[1723593186264,31.21,146.81,146.78,6.8128]
[1723593188345,31.21,146.82,146.79,6.8123]
[1723593189964,31.21,146.82,146.78,6.8127]
[1723593190370,6.8115,146.81,146.77,6.8132]
[1723593190559,0.85950493,146.8,146.76,6.8137]
[1723593191644,38.0211,146.82,146.77,6.8131]
[1723593193061,6.8116,146.81,146.77,6.8131]
[1723593193775,31.21,146.8,146.77,6.8131]
[1723593194362,31.21,146.8,146.72,20.0]
[1723593194572,32.06950493,146.8,146.72,20.0]
[1723593195677,0.85950493,146.79,146.72,20.0]
[1723593195848,12.5,146.78,146.72,20.0]
[1723593196978,12.5,146.78,146.76,6.8134]
[1723593199085,12.5,146.78,146.77,6.8133]
[1723593202686,12.5,146.78,146.72,20.0]
[1723593202878,12.5,146.78,146.75,6.8138]
[1723593203598,7.67200493,146.79,146.76,6.8137]
[1723593203599,12.5,146.79,146.76,6.8137]
[1723593204183,20.0,146.84,146.72,0.12549]
[1723593204478,12.5,146.82,146.79,6.812]
[1723593204673,12.5,146.82,146.72,45.50196]
[1723593204674,20.0,146.81,146.72,45.50196]
[1723593204875,20.0,146.81,146.73,20.0]
[1723593205092,20.0,146.81,146.78,6.8125]
[1723593205797,20.0,146.81,146.79,6.8123]
[1723593206178,16.6192,146.85,146.74,0.25098]
[1723593206497,16.6192,146.85,146.82,6.8109]
[1723593206498,12.5,146.85,146.82,6.8109]
[1723593206696,12.5,146.85,146.76,22.5819]
[1723593206918,12.5,146.85,146.82,6.811]
[1723593207275,12.5,146.85,146.8,6.8115]
[1723593207468,19.3096,146.85,146.8,6.8115]
[1723593207674,12.5,146.83,146.8,6.8115]
[1723593210099,12.5,146.83,146.76,22.5819]
[1723593210303,12.5,146.81,146.76,22.5819]
[1723593210803,12.5,146.81,146.79,6.8123]
[1723593212171,12.5,146.83,146.8,6.8119]
[1723593212919,0.12549,146.86,146.81,6.8111]
[1723593213080,12.5,146.84,146.81,6.8111]
[1723593215080,12.5,146.84,146.8,6.8119]
[1723593219105,6.8092,146.86,146.82,6.811]
[1723593219298,7.77488929,146.88,146.85,6.8096]
[1723593219483,12.5,146.89,146.85,6.8096]
[1723593219981,19.3069,146.91,146.86,6.8091]
[1723593220180,19.3069,146.91,146.83,12.5]
[1723593220181,12.5,146.91,146.83,12.5]
[1723593220500,7.76011791,146.92,146.88,6.8082]
[1723593220678,19.3059,146.93,146.89,6.8077]
[1723593220679,12.5,146.93,146.89,6.8077]
[1723593220885,12.5,146.95,146.88,6.8082]
[1723593221105,12.5,146.93,146.86,15.9017]
[1723593221502,12.5,146.93,146.89,6.8077]
[1723593221882,6.8058,146.94,146.89,6.8077]
[1723593223220,6.8064,146.92,146.87,6.8084]
[1723593223598,37.986,146.93,146.88,6.8081]
[1723593224785,6.8055,146.94,146.87,1.36156043]
[1723593225011,20.0,146.93,146.87,1.36156043]
[1723593225324,20.0,146.93,146.89,6.8077]
[1723593225894,20.0,146.93,146.9,6.8072]
[1723593226207,20.0,146.93,146.91,6.8068]
[1723593226527,7.76011791,146.97,146.93,6.8059]
[1723593226684,6.8042,146.97,146.92,6.8063]
[1723593226880,23.5717408,146.99,146.88,0.12549]
[1723593226881,17.1713408,146.99,146.88,0.12549]
[1723593227113,0.8383408,146.99,146.88,66.86300316]
[1723593227432,0.8383408,146.99,146.89,15.9017]
[1723593227580,0.8383408,146.99,146.94,6.8054]
[1723593227982,6.8044,146.97,146.89,15.9017]
[1723593228318,7.66410493,146.96,146.91,6.8065]
[1723593228504,0.85950493,146.95,146.91,6.8065]
[1723593228815,6.8046,146.96,146.92,6.8063]
[1723593229319,0.85950493,146.95,146.92,6.8063]
[1723593229486,6.8046,146.96,146.92,6.8063]
[1723593229689,31.18,146.98,146.93,6.8056]
[1723593229988,20.0,146.97,146.93,6.8056]
[1723593230693,6.8036,146.98,146.93,6.8056]
[1723593230905,20.0,146.97,146.93,6.8056]
[1723593231242,20.0,146.97,146.94,6.8054]
[1723593231890,20.0,146.97,146.89,15.9017]
[1723593231891,20.0,146.97,146.93,6.8059]
[1723593232211,26.8041,146.97,146.93,6.8059]
[1723593233833,20.0,146.97,146.93,6.8059]
[1723593234293,26.8041,146.97,146.93,6.8059]
[1723593234716,20.0,146.97,146.93,6.8059]
[1723593236923,26.8042,146.97,146.93,6.8059]
[1723593237128,26.8042,146.97,146.92,6.8063]
[1723593239452,37.9846,146.96,146.91,6.8068]
[1723593239924,37.9846,146.96,146.92,6.8063]
[1723593240347,31.18,146.96,146.92,6.8063]
[1723593240645,0.8383408,146.99,146.97,6.8038]
[1723593241516,0.8383408,146.99,146.98,6.8036]
[1723593251560,0.8383408,146.99,146.98,26.92909]
[1723593251737,0.8383408,146.99,146.98,27.05458]
[1723593252657,0.8383408,146.99,146.98,6.8036]
[1723593259263,0.8383408,146.99,146.94,16.2681]
[1723593259578,0.8383408,146.99,146.98,6.8036]
[1723593260076,0.8383408,146.99,146.93,6.8058]
[1723593260381,0.12549,146.96,146.84,21.4856]
[1723593260585,102.9846,146.96,146.84,21.4856]
[1723593260899,0.85950493,146.95,146.84,21.4856]
[1723593261057,51.18,146.96,146.92,6.8063]
[1723593261790,51.18,146.96,146.93,6.8059]
[1723593262551,51.18,146.96,146.92,6.8063]
[1723593263069,51.18,146.96,146.84,21.4856]
[1723593263385,6.805,146.95,146.9,6.8072]
[1723593264287,0.85950493,146.94,146.9,6.8072]
[1723593264582,57.9847,146.96,146.91,6.8068]
[1723593264883,57.985,146.96,146.91,6.8068]
[1723593265387,51.18,146.96,146.92,6.8063]
[1723593268292,51.18,146.96,146.85,20.0]
[1723593268580,51.18,146.96,146.86,45.50196]
[1723593268749,51.18,146.96,146.87,20.0]
[1723593269767,6.8055,146.94,146.86,0.25098]
[1723593269965,45.0,146.95,146.9,6.8069]
[1723593270165,57.9849,146.96,146.92,6.8063]
[1723593270564,51.18,146.96,146.87,0.12549]
[1723593270778,51.18,146.96,146.87,0.25098]
[1723593271096,51.18,146.96,146.88,0.25098]
[1723593271268,51.18,146.96,146.88,45.25098]
[1723593272903,0.8383408,146.99,146.9,0.12549]
[1723593273078,0.8383408,146.99,146.9,65.50196]
[1723593276263,0.8383408,146.99,146.9,66.86281386]
[1723593277262,0.8383408,146.99,146.9,65.50196]
[1723593278988,31.18,146.98,146.9,20.0]
[1723593279166,20.0,146.97,146.89,22.559]
[1723593279688,0.85950493,146.96,146.89,22.559]
[1723593280567,20.0,146.97,146.89,22.559]
[1723593280789,20.85950493,146.97,146.89,22.559]
[1723593282159,76.18,146.96,146.89,22.559]
[1723593282356,0.85950493,146.95,146.89,22.559]
[1723593282994,20.85950493,146.95,146.89,22.559]
[1723593284270,0.85950493,146.95,146.89,22.559]
[1723593284488,20.85950493,146.95,146.89,22.559]
[1723593284792,20.85950493,146.95,146.89,16.553]
[1723593287983,20.0,146.95,146.86,6.6257]
[1723593288179,20.0,146.95,146.87,20.0]
[1723593290090,12.47,146.94,146.87,20.0]
[1723593290790,12.47,146.92,146.86,6.6257]
[1723593290997,0.98499493,146.93,146.85,15.4983]
[1723593290998,12.47,146.9,146.85,15.4983]
[1723593291595,0.85950493,146.89,146.82,6.0613]
[1723593292689,0.85950493,146.89,146.83,20.0]
[1723593293286,12.47,146.9,146.83,20.0]
[1723593294803,16.6313,146.93,146.84,0.12549]
[1723593294998,39.5869411,146.95,146.86,0.12549]
[1723593295240,32.47,146.95,146.87,16.1711]
[1723593295505,20.0,146.95,146.87,28.6411]
[1723593295694,34.3652,146.97,146.88,0.12549]
[1723593297197,20.42284562,146.99,146.9,0.12549]
[1723593297508,20.42284562,146.99,146.9,1.86297718]
[1723593297509,13.3083408,146.99,146.9,1.86297718]
[1723593298020,0.8383408,146.99,146.9,0.50196]
[1723593298428,45.8383408,146.99,146.9,0.50196]
[1723593298607,20.0,146.98,146.9,0.50196]
[1723593300396,20.0,146.98,146.9,21.86300414]
[1723593300911,20.0,146.98,146.94,6.8053]
[1723593308825,31.16,146.96,146.89,6.3271]
[1723593309024,6.8051,146.95,146.9,6.8072]
[1723593309412,6.8051,146.95,146.91,6.8068]
[1723593311145,37.9646,146.96,146.91,6.8068]
[1723593311473,37.9668,146.92,146.87,22.9797]
[1723593311750,31.16,146.92,146.89,6.8073]
[1723593312249,31.16,146.92,146.9,6.8073]
[1723593312752,37.9664,146.92,146.88,6.8082]
[1723593312954,31.16,146.92,146.88,6.8082]
[1723593313155,31.16,146.92,146.89,6.8073]
[1723593313327,6.93089,146.95,146.89,6.8073]
[1723593313649,102.9655,146.94,146.89,6.8073]
[1723593314253,0.85950493,146.93,146.89,6.8073]
[1723593314824,102.9655,146.94,146.89,6.8073]
[1723593316950,6.806,146.93,146.88,6.8081]
[1723593317649,77.01950493,146.92,146.86,6.8088]
[1723593317853,6.8069,146.91,146.86,6.8088]
[1723593318034,0.85950493,146.9,146.87,6.8087]
[1723593319430,31.16,146.9,146.83,15.4637]
[1723593319634,31.16,146.88,146.83,15.4637]
[1723593319933,7.66830493,146.87,146.82,6.8109]
[1723593321543,7.66830493,146.87,146.83,6.8105]
[1723593321951,32.48,146.86,146.83,6.8105]
[1723593324068,32.48,146.86,146.85,6.8096]
[1723593324069,20.0,146.86,146.85,6.8096]
[1723593324233,20.0,146.86,146.81,6.3144]
[1723593324570,12.48,146.88,146.84,6.81]
[1723593324571,20.0,146.87,146.84,6.81]
[1723593325068,32.8362,146.95,146.81,6.3144]
[1723593325253,19.2875,146.9,146.85,6.8096]
[1723593325455,20.0,146.89,146.85,6.8096]
[1723593327063,26.8079,146.89,146.84,6.81]
[1723593327755,6.8082,146.88,146.81,6.3144]
[1723593328082,26.8079,146.89,146.84,6.8099]
[1723593330147,20.0,146.89,146.82,0.12549]
[1723593330344,20.0,146.9,146.86,6.8091]
[1723593331074,20.0,146.9,146.87,6.8086]
[1723593331276,20.0,146.91,146.87,6.8086]
[1723593331479,26.8069,146.91,146.87,6.8086]
[1723593331775,26.8069,146.91,146.86,6.8091]
[1723593332458,58.0069,146.91,146.86,6.8091]
[1723593334872,20.0,146.91,146.83,16.1761]
[1723593335052,47.0231,146.95,146.89,6.8077]
[1723593335257,47.0231,146.95,146.87,6.8082]
[1723593335258,6.8059,146.93,146.87,6.8082]
[1723593335458,26.8064,146.92,146.84,0.37647]
[1723593335790,20.0,146.94,146.83,16.1761]
[1723593335791,20.0,146.91,146.83,16.1761]
[1723593336006,20.0,146.91,146.84,0.12549]
[1723593336668,20.0,146.92,146.84,0.12549]
[1723593336871,6.8069,146.91,146.87,6.8087]
[1723593337096,26.8065,146.92,146.87,6.8087]
[1723593337664,6.807,146.91,146.87,6.8087]
[1723593338784,26.8065,146.92,146.87,6.8087]
[1723593339794,20.0,146.92,146.88,6.808]
[1723593340290,38.0051,146.95,146.9,6.8069]
[1723593340596,20.0,146.94,146.9,6.8069]
[1723593341168,26.8055,146.94,146.9,6.8069]
[1723593341487,26.8055,146.94,146.89,6.8077]
[1723593341884,20.0,146.94,146.88,15.5597]
[1723593342195,0.85950493,146.93,146.88,15.5597]
[1723593342693,6.806,146.93,146.88,22.3678]
[1723593344764,38.006,146.93,146.88,22.3678]
[1723593345899,12.47,146.92,146.88,22.3678]
[1723593346563,12.47,146.92,146.89,6.8077]
[1723593351429,6.806,146.93,146.89,6.8077]
[1723593351716,19.276,146.93,146.89,6.8077]
[1723593351927,12.47,146.91,146.88,15.5597]
[1723593352131,6.8065,146.92,146.88,15.5597]
[1723593352300,12.47,146.9,146.88,15.5597]
[1723593352504,12.47,146.9,146.87,6.8083]
[1723593353195,12.47,146.9,146.88,6.8082]
[1723593356812,12.47,146.9,146.85,15.1089]
[1723593357113,12.47,146.88,146.86,6.8088]
[1723593357316,12.47,146.88,146.87,6.8087]
[1723593358412,12.47,146.88,146.85,15.1089]
[1723593358413,12.47,146.88,146.86,6.809]
[1723593361923,6.8069,146.91,146.86,6.809]
[1723593362115,12.47,146.89,146.86,6.809]
[1723593362517,12.47,146.89,146.85,6.8095]
[1723593365206,12.47,146.87,146.82,6.8107]
[1723593365420,12.47,146.87,146.85,6.8095]
[1723593366245,12.47,146.89,146.86,6.8091]
[1723593366710,90.40814384,146.93,146.86,6.8091]
[1723593366711,6.8069,146.91,146.86,6.8091]
[1723593366906,20.0,146.9,146.83,6.6584]
[1723593367129,20.0,146.9,146.84,0.25098]
[1723593367510,20.0,146.91,146.84,0.25098]
[1723593367735,20.0,146.91,146.88,6.8082]
[1723593368136,12.47,146.92,146.89,6.8077]
[1723593369943,12.47,146.92,146.86,15.7347]
[1723593369944,12.47,146.92,146.88,6.8081]
[1723593371135,6.8061,146.93,146.88,6.8081]
[1723593371451,20.0,146.92,146.88,6.8081]
[1723593371943,6.55321235,146.96,146.86,15.7347]
[1723593372242,12.47,146.94,146.87,0.25098]
[1723593372449,12.47,146.94,146.91,6.8068]
[1723593373653,19.2749,146.96,146.91,6.8068]
[1723593374031,20.0,146.95,146.91,6.8068]
[1723593375354,26.805,146.95,146.91,6.8068]
[1723593376654,20.0,146.95,146.88,6.0484]
[1723593376855,20.13520493,146.94,146.89,6.8074]
[1723593377032,0.85950493,146.93,146.89,6.8074]
[1723593377952,7.66540493,146.93,146.89,6.8074]
[1723593378129,0.85950493,146.92,146.89,6.8074]
[1723593378456,6.8059,146.93,146.89,6.8074]
[1723593378647,0.85950493,146.93,146.89,6.8074]
[1723593379570,12.47,146.92,146.88,12.8565]
[1723593379740,12.47,146.9,146.86,22.5435]
[1723593379933,0.85950493,146.89,146.86,22.5435]
[1723593380150,16.2913,146.94,146.86,15.7347]
[1723593380343,12.47,146.91,146.88,6.8078]
[1723593381562,51.8061,146.93,146.88,6.8078]
[1723593381859,12.47,146.91,146.88,6.8078]
[1723593383333,12.47,146.91,146.89,6.8076]
[1723593385681,12.47,146.91,146.88,6.8081]
[1723593385986,12.47,146.91,146.86,15.7347]
[1723593386662,12.47,146.91,146.87,6.8083]
[1723593391074,0.85950493,146.9,146.86,15.7347]
[1723593391271,0.85950493,146.9,146.84,6.3785]
[1723593391272,12.47,146.89,146.84,6.3785]
[1723593391709,20.85950493,146.92,146.84,6.3785]
[1723593391888,32.47,146.92,146.84,6.3785]
[1723593392095,32.47,146.92,146.89,6.8076]
[1723593393575,32.47,146.92,146.9,6.8072]
[1723593393986,6.8049,146.96,146.85,0.12549]
[1723593394181,6.8049,146.96,146.86,16.1873]
[1723593394182,20.0,146.95,146.86,16.1873]
[1723593394493,32.47,146.95,146.87,1.61230854]
[1723593394991,32.47,146.95,146.92,6.8064]
[1723593394992,12.47,146.95,146.92,6.8064]
[1723593395669,12.47,146.95,146.87,0.25098]
[1723593395670,12.47,146.95,146.91,6.8068]
[1723593398496,19.275,146.95,146.91,6.8068]
[1723593398874,19.275,146.95,146.9,6.8072]
[1723593400200,23.64942424,146.98,146.89,6.8077]
[1723593400201,12.47,146.93,146.89,6.8077]
[1723593400602,6.8068,146.92,146.87,6.8083]
[1723593400808,6.8068,146.92,146.86,16.1873]
[1723593401312,12.47,146.91,146.87,6.8086]
[1723593401508,19.277,146.91,146.87,6.8086]
[1723593401698,0.85950493,146.9,146.87,6.8086]
[1723593402081,19.277,146.91,146.87,6.8086]
[1723593402380,0.85950493,146.9,146.87,6.8086]
[1723593402597,19.277,146.91,146.86,16.1873]
[1723593402794,12.47,146.89,146.84,6.3785]
[1723593403102,0.85950493,146.88,146.84,6.3785]
[1723593403307,12.47,146.89,146.87,6.8087]
[1723593405211,0.12549,146.92,146.84,6.3785]
[1723593405508,27.30786,146.93,146.88,6.8081]
[1723593405809,12.47,146.91,146.88,6.8081]
[1723593406791,19.2772,146.91,146.84,6.3785]
[1723593406996,0.85950493,146.9,146.84,6.3785]
[1723593407199,13.32950493,146.89,146.84,6.3785]
[1723593408400,12.47,146.89,146.84,6.3785]
[1723593411810,12.47,146.89,146.82,15.9836]
[1723593412122,12.47,146.89,146.83,20.0]
[1723593415209,12.47,146.89,146.87,6.8086]
[1723593418742,12.47,146.89,146.85,6.8096]
[1723593418743,0.85950493,146.88,146.85,6.8096]
[1723593419054,0.85950493,146.88,146.84,6.81]
[1723593419055,12.47,146.87,146.84,6.81]
[1723593419336,0.85950493,146.86,146.84,6.81]
[1723593419551,12.47,146.85,146.78,16.5037]
[1723593419768,12.47,146.85,146.81,6.8115]
[1723593419769,12.47,146.83,146.81,6.8115]
[1723593420036,12.47,146.83,146.8,6.8118]
[1723593420037,0.85950493,146.82,146.8,6.8118]
[1723593420233,0.85950493,146.82,146.78,16.5037]
[1723593420422,12.47,146.83,146.78,16.5037]
[1723593420623,13.32950493,146.83,146.79,6.8124]
[1723593421016,12.47,146.81,146.78,6.8128]
[1723593422732,12.47,146.81,146.74,16.5037]
[1723593422941,12.47,146.79,146.74,16.5037]
[1723593423160,12.47,146.79,146.77,6.8129]
[1723593423869,12.47,146.79,146.76,6.8134]
[1723593425146,0.85950493,146.78,146.76,6.8134]
[1723593425347,12.47,146.79,146.76,6.8134]
[1723593425765,12.47,146.79,146.77,6.8132]
[1723593427870,0.12549,146.82,146.78,6.8129]
[1723593428164,77.47,146.82,146.78,6.8129]
[1723593429764,32.47,146.82,146.78,6.8129]
[1723593430144,12.47,146.8,146.77,6.8133]
[1723593430768,12.47,146.8,146.78,6.8127]
[1723593432057,12.47,146.8,146.77,6.8133]
[1723593432955,0.85950493,146.79,146.76,6.8135]
[1723593433152,12.47,146.8,146.76,6.8135]
[1723593434454,6.8117,146.81,146.76,6.8135]
[1723593434655,12.47,146.79,146.76,6.8135]
[1723593445198,12.47,146.79,146.77,6.8132]
[1723593445890,12.47,146.81,146.74,16.5037]
[1723593446476,12.47,146.81,146.79,6.8124]
[1723593447498,12.47,146.81,146.78,6.8128]
[1723593449978,12.47,146.79,146.76,6.8137]
[1723593450711,0.85950493,146.78,146.76,6.8137]
[1723593450893,12.47,146.79,146.76,6.8137]
[1723593451296,6.812,146.8,146.76,6.8137]
[1723593451606,12.47,146.79,146.76,6.8137]
[1723593452700,6.93699,146.81,146.76,6.8137]
[1723593452899,45.0,146.8,146.76,6.8137]
[1723593453098,20.25098,146.82,146.74,16.5037]
[1723593453300,32.47,146.81,146.78,6.8125]
[1723593453687,12.47,146.81,146.78,6.8125]
[1723593453883,23.3951,146.88,146.83,6.8105]
[1723593454091,12.47,146.86,146.84,6.8099]
[1723593454412,12.47,146.86,146.83,6.8104]
[1723593455207,6.8087,146.87,146.83,6.8104]
[1723593455408,32.47,146.86,146.83,6.8104]
[1723593455587,32.47,146.86,146.82,6.8109]
[1723593456003,7.11550988,146.9,146.8,1.36222021]